[Event "*** Titled Tuesday Blitz"]
[Site "Chess.com"]
[Date "2020.01.07"]
[Round "9"]
[White "stoleriu"]
[Black "manmanlai1"]
[Result "1-0"]
[WhiteElo "2550"]
[BlackElo "2389"]
[TimeControl "180+2"]
[EndTime "15:06:02 PST"]
[Termination "stoleriu won by resignation"]

1. e4 {[%clk 0:03:01.4]} 1... c6 {[%clk 0:03:00.9]} 2. d4 {[%clk 0:02:59.7]}
2... d5 {[%clk 0:03:02.3]} 3. Nc3 {[%clk 0:03:00.2]} 3... dxe4 {[%clk
0:03:03.1]} 4. Nxe4 {[%clk 0:03:02.1]} 4... Nf6 {[%clk 0:03:04.5]} 5. Nxf6+
{[%clk 0:03:00.8]} 5... exf6 {[%clk 0:03:06.4]} 6. Bc4 {[%clk 0:02:51.5]} 6...
Bd6 {[%clk 0:03:05.1]} 7. Qe2+ {[%clk 0:02:52.6]} 7... Be7 {[%clk 0:03:05.7]} 8.
Be3 {[%clk 0:02:47.7]} 8... O-O {[%clk 0:03:06.7]} 9. O-O-O {[%clk 0:02:47.8]}
9... Nd7 {[%clk 0:03:07.5]} 10. h4 {[%clk 0:02:47.1]} 10... Nb6 {[%clk
0:03:06.5]} 11. Bd3 {[%clk 0:02:48.3]} 11... Re8 {[%clk 0:03:06.3]} 12. Qh5
{[%clk 0:02:47.7]} 12... f5 {[%clk 0:03:02.5]} 13. Ne2 {[%clk 0:02:45.9]} 13...
Qd5 {[%clk 0:02:41.1]} 14. Nc3 {[%clk 0:02:41.6]} 14... Qa5 {[%clk 0:02:38.5]}
15. Kb1 {[%clk 0:02:39.8]} 15... Be6 {[%clk 0:02:37.3]} 16. Rh3 {[%clk 0:02:22]}
16... Rad8 {[%clk 0:02:15.5]} 17. Rg3 {[%clk 0:02:07.2]} 17... g6 {[%clk
0:02:09.2]} 18. Qh6 {[%clk 0:02:04.6]} 18... Bf8 {[%clk 0:02:04.6]} 19. Qg5
{[%clk 0:01:59.2]} 19... Be7 {[%clk 0:01:52.6]} 20. Qh6 {[%clk 0:01:59.4]} 20...
Bf8 {[%clk 0:01:48.2]} 21. Qh5 {[%clk 0:01:47.5]} 21... Bb4 {[%clk 0:01:37.2]}
22. Bd2 {[%clk 0:01:34.3]} 22... Rxd4 {[%clk 0:01:32.5]} 23. a3 {[%clk
0:01:24.2]} 23... f4 {[%clk 0:01:13.2]} 24. Rg5 {[%clk 0:01:20.4]} 24... Nd5
{[%clk 0:00:42.5]} 25. Nxd5 {[%clk 0:01:12.6]} 25... Bxd2 {[%clk 0:00:24.6]} 26.
Nf6+ {[%clk 0:01:10.6]} 26... Kf8 {[%clk 0:00:25.8]} 27. Qh6+ {[%clk 0:01:05.8]}
27... Ke7 {[%clk 0:00:26.9]} 28. Rxa5 {[%clk 0:01:02.7]} 1-0

[Event "*** Titled Tuesday Blitz"]
[Site "Chess.com"]
[Date "2020.01.07"]
[Round "9"]
[White "TheBigBadChessDad"]
[Black "tomozupan"]
[Result "1-0"]
[WhiteElo "2293"]
[BlackElo "2191"]
[TimeControl "180+2"]
[EndTime "15:06:08 PST"]
[Termination "TheBigBadChessDad won by resignation"]

1. g3 {[%clk 0:03:01.9]} 1... Nf6 {[%clk 0:02:59.6]} 2. Bg2 {[%clk 0:03:01]}
2... g6 {[%clk 0:03:00.2]} 3. d4 {[%clk 0:02:59.8]} 3... Bg7 {[%clk 0:03:01.2]}
4. e4 {[%clk 0:03:00.9]} 4... d6 {[%clk 0:02:58.1]} 5. f4 {[%clk 0:02:58.7]}
5... O-O {[%clk 0:02:58.3]} 6. c3 {[%clk 0:02:51.2]} 6... Nc6 {[%clk 0:02:57.1]}
7. e5 {[%clk 0:02:52.3]} 7... dxe5 {[%clk 0:02:57.7]} 8. fxe5 {[%clk 0:02:48.9]}
8... Nd5 {[%clk 0:02:55.3]} 9. Nf3 {[%clk 0:02:45.7]} 9... Bg4 {[%clk
0:02:53.2]} 10. O-O {[%clk 0:02:39.9]} 10... e6 {[%clk 0:02:54.2]} 11. h3 {[%clk
0:02:33.6]} 11... Bxf3 {[%clk 0:02:54.1]} 12. Qxf3 {[%clk 0:02:32.9]} 12... Nce7
{[%clk 0:02:41.4]} 13. Nd2 {[%clk 0:02:31.2]} 13... c5 {[%clk 0:02:42.1]} 14.
Ne4 {[%clk 0:02:27]} 14... cxd4 {[%clk 0:02:35.2]} 15. cxd4 {[%clk 0:02:28.1]}
15... Qb6 {[%clk 0:02:35.6]} 16. Nf6+ {[%clk 0:02:23.5]} 16... Bxf6 {[%clk
0:02:06.1]} 17. exf6 {[%clk 0:02:22.8]} 17... Qxd4+ {[%clk 0:02:05.7]} 18. Kh1
{[%clk 0:02:22.3]} 18... Nf5 {[%clk 0:02:06.3]} 19. Bg5 {[%clk 0:02:12.4]} 19...
h6 {[%clk 0:01:47.4]} 20. Rad1 {[%clk 0:02:06.4]} 20... Qxb2 {[%clk 0:01:45.2]}
21. g4 {[%clk 0:01:25.3]} 21... hxg5 {[%clk 0:01:12.7]} 22. gxf5 {[%clk
0:01:26.3]} 22... Nf4 {[%clk 0:00:35.2]} 23. fxg6 {[%clk 0:01:13.3]} 23... fxg6
{[%clk 0:00:25.2]} 24. Rd7 {[%clk 0:01:02]} 24... Rxf6 {[%clk 0:00:25]} 25. Rxb7
{[%clk 0:00:55.6]} 25... Raf8 {[%clk 0:00:19.3]} 26. Rxb2 {[%clk 0:00:55.2]}
26... Nxg2 {[%clk 0:00:16.1]} 27. Qxf6 {[%clk 0:00:54.5]} 1-0

[Event "*** Titled Tuesday Blitz"]
[Site "Chess.com"]
[Date "2020.01.07"]
[Round "9"]
[White "shanemelaughcm"]
[Black "Irishchessman16"]
[Result "0-1"]
[WhiteElo "2273"]
[BlackElo "2227"]
[TimeControl "180+2"]
[EndTime "15:06:10 PST"]
[Termination "Irishchessman16 won by resignation"]

1. e4 {[%clk 0:02:11.4]} 1... c5 {[%clk 0:02:59.9]} 2. d4 {[%clk 0:02:11.5]}
2... cxd4 {[%clk 0:03:00.3]} 3. c3 {[%clk 0:02:12.8]} 3... Nf6 {[%clk
0:03:01.8]} 4. e5 {[%clk 0:02:13.3]} 4... Nd5 {[%clk 0:03:02.9]} 5. Nf3 {[%clk
0:02:14.2]} 5... Nc6 {[%clk 0:03:03.4]} 6. Bc4 {[%clk 0:02:14.2]} 6... Nb6
{[%clk 0:03:04]} 7. Bb3 {[%clk 0:02:14.7]} 7... d5 {[%clk 0:02:59.6]} 8. cxd4
{[%clk 0:02:15]} 8... Bg4 {[%clk 0:02:59.2]} 9. Nc3 {[%clk 0:02:06]} 9... e6
{[%clk 0:02:59.8]} 10. Be3 {[%clk 0:02:06.4]} 10... Be7 {[%clk 0:02:56.9]} 11.
a3 {[%clk 0:02:02.4]} 11... O-O {[%clk 0:02:56.1]} 12. Bc2 {[%clk 0:02:03.5]}
12... Bh5 {[%clk 0:02:54.4]} 13. h4 {[%clk 0:01:23.9]} 13... Bg6 {[%clk
0:02:47]} 14. h5 {[%clk 0:01:14.3]} 14... Bxc2 {[%clk 0:02:47.5]} 15. Qxc2
{[%clk 0:01:15.1]} 15... h6 {[%clk 0:02:48]} 16. Rh3 {[%clk 0:01:12.3]} 16... f5
{[%clk 0:02:47.5]} 17. exf6 {[%clk 0:01:09.6]} 17... Bxf6 {[%clk 0:02:46.7]} 18.
Qg6 {[%clk 0:01:07.6]} 18... Qe8 {[%clk 0:02:45.3]} 19. Qg4 {[%clk 0:01:08.3]}
19... e5 {[%clk 0:02:42.7]} 20. O-O-O {[%clk 0:00:54.5]} 20... e4 {[%clk
0:02:36.9]} 21. Nh4 {[%clk 0:00:55.2]} 21... Bxh4 {[%clk 0:02:26.4]} 22. Rxh4
{[%clk 0:00:57.1]} 22... Kh7 {[%clk 0:02:27.5]} 23. Rh3 {[%clk 0:00:51.7]} 23...
Rf6 {[%clk 0:02:17.2]} 24. Rg3 {[%clk 0:00:50.7]} 24... Qf7 {[%clk 0:02:17]} 25.
Kb1 {[%clk 0:00:45.1]} 25... Rd8 {[%clk 0:02:09.1]} 26. Ne2 {[%clk 0:00:45.4]}
26... Qd7 {[%clk 0:02:07.5]} 27. Qh4 {[%clk 0:00:40.8]} 27... Nc4 {[%clk
0:02:03.7]} 28. Nf4 {[%clk 0:00:39.2]} 28... N6a5 {[%clk 0:02:01.3]} 29. Ng6
{[%clk 0:00:34.9]} 29... Qb5 {[%clk 0:01:54.4]} 30. Bc1 {[%clk 0:00:35.9]} 30...
Nb3 {[%clk 0:01:44.1]} 31. Rxb3 {[%clk 0:00:20.4]} 31... Qxb3 {[%clk 0:01:44.1]}
32. Rh1 {[%clk 0:00:16.7]} 32... Nxa3+ {[%clk 0:01:43.3]} 33. Ka1 {[%clk
0:00:17.2]} 33... Nc2+ {[%clk 0:01:44]} 34. Kb1 {[%clk 0:00:18.5]} 34... Nb4
{[%clk 0:01:41]} 35. Rh3 {[%clk 0:00:17.5]} 35... Qc2+ {[%clk 0:01:41.2]} 0-1

[Event "*** Titled Tuesday Blitz"]
[Site "Chess.com"]
[Date "2020.01.07"]
[Round "9"]
[White "j2806"]
[Black "newauto"]
[Result "1-0"]
[WhiteElo "1878"]
[BlackElo "2039"]
[TimeControl "180+2"]
[EndTime "15:06:48 PST"]
[Termination "j2806 won by resignation"]

1. e4 {[%clk 0:03:01.9]} 1... c6 {[%clk 0:03:01.9]} 2. d4 {[%clk 0:03:02.4]}
2... d5 {[%clk 0:03:02.2]} 3. exd5 {[%clk 0:03:02.6]} 3... cxd5 {[%clk
0:03:03.5]} 4. Bd3 {[%clk 0:03:03.5]} 4... Nc6 {[%clk 0:03:04.7]} 5. c3 {[%clk
0:03:03.7]} 5... Nf6 {[%clk 0:03:05.9]} 6. h3 {[%clk 0:03:04.2]} 6... e5 {[%clk
0:03:05.2]} 7. dxe5 {[%clk 0:03:04.5]} 7... Nxe5 {[%clk 0:03:05.8]} 8. Nf3
{[%clk 0:03:06.1]} 8... Nxd3+ {[%clk 0:03:05.9]} 9. Qxd3 {[%clk 0:03:07.6]} 9...
Be7 {[%clk 0:03:04.3]} 10. O-O {[%clk 0:03:08.6]} 10... O-O {[%clk 0:03:05.8]}
11. Bg5 {[%clk 0:03:08.4]} 11... h6 {[%clk 0:03:05.6]} 12. Bh4 {[%clk 0:03:09]}
12... Be6 {[%clk 0:03:05.1]} 13. Nbd2 {[%clk 0:03:06.5]} 13... Re8 {[%clk
0:03:02.7]} 14. Nd4 {[%clk 0:03:06.9]} 14... Rc8 {[%clk 0:02:22.5]} 15. Rfe1
{[%clk 0:03:01.1]} 15... Qd7 {[%clk 0:02:17]} 16. N2f3 {[%clk 0:02:53.7]} 16...
Ne4 {[%clk 0:02:07.1]} 17. Bxe7 {[%clk 0:02:52.8]} 17... Qxe7 {[%clk 0:02:06]}
18. Nd2 {[%clk 0:02:53]} 18... Nxd2 {[%clk 0:02:01.9]} 19. Qxd2 {[%clk
0:02:53.8]} 19... Qc5 {[%clk 0:01:56.1]} 20. Nxe6 {[%clk 0:02:47.8]} 20... fxe6
{[%clk 0:01:55.1]} 21. Re5 {[%clk 0:02:46.8]} 21... Rc6 {[%clk 0:01:45.8]} 22.
Rae1 {[%clk 0:02:44.3]} 22... Qd6 {[%clk 0:01:20.9]} 23. Qe3 {[%clk 0:02:39.7]}
23... a6 {[%clk 0:01:15.4]} 24. Qg3 {[%clk 0:02:28.5]} 24... b5 {[%clk
0:01:01.9]} 25. Qe3 {[%clk 0:02:26.7]} 25... a5 {[%clk 0:00:58.4]} 26. f4 {[%clk
0:02:26.4]} 26... b4 {[%clk 0:00:58.8]} 27. cxb4 {[%clk 0:02:26.6]} 27... Qxb4
{[%clk 0:00:53.3]} 28. b3 {[%clk 0:02:22.9]} 28... Rf8 {[%clk 0:00:49.3]} 29.
Rxe6 {[%clk 0:02:20.5]} 29... Rc3 {[%clk 0:00:47.5]} 30. Qd2 {[%clk 0:02:10.5]}
30... Rxf4 {[%clk 0:00:29.7]} 31. Qxd5 {[%clk 0:02:06.3]} 31... Qd4+ {[%clk
0:00:22.1]} 32. Qxd4 {[%clk 0:02:06]} 32... Rxd4 {[%clk 0:00:24]} 33. Ra6 {[%clk
0:02:05.5]} 33... a4 {[%clk 0:00:22.5]} 34. Rxa4 {[%clk 0:02:00.9]} 34... Rxa4
{[%clk 0:00:23.1]} 35. bxa4 {[%clk 0:02:02]} 35... Ra3 {[%clk 0:00:25]} 36. Ra1
{[%clk 0:02:01.8]} 36... Rxa4 {[%clk 0:00:25.9]} 37. Kf2 {[%clk 0:02:02.6]}
37... Kf7 {[%clk 0:00:27]} 38. Ke3 {[%clk 0:02:02.9]} 38... Ke6 {[%clk
0:00:28.1]} 39. Kd3 {[%clk 0:02:04.1]} 39... Kf5 {[%clk 0:00:28.2]} 40. Kc3
{[%clk 0:02:02.9]} 40... Kf4 {[%clk 0:00:28.3]} 41. Kb3 {[%clk 0:02:00.7]} 41...
Ra8 {[%clk 0:00:28.6]} 42. a4 {[%clk 0:02:01.5]} 42... Kg3 {[%clk 0:00:29.3]}
43. Ra2 {[%clk 0:02:02.5]} 43... g5 {[%clk 0:00:29.4]} 44. a5 {[%clk 0:02:02.8]}
44... Rb8+ {[%clk 0:00:27.8]} 45. Kc4 {[%clk 0:02:02.2]} 45... h5 {[%clk
0:00:26.8]} 46. a6 {[%clk 0:02:01.1]} 46... h4 {[%clk 0:00:21.2]} 47. a7 {[%clk
0:02:00.9]} 47... Ra8 {[%clk 0:00:21.4]} 48. Kb5 {[%clk 0:02:01.6]} 48... g4
{[%clk 0:00:21.9]} 49. hxg4 {[%clk 0:02:01.1]} 49... Kxg4 {[%clk 0:00:22.6]} 50.
Kb6 {[%clk 0:02:01.9]} 50... Kf4 {[%clk 0:00:20.4]} 51. Kb7 {[%clk 0:02:02.8]}
1-0

[Event "*** Titled Tuesday Blitz"]
[Site "Chess.com"]
[Date "2020.01.07"]
[Round "9"]
[White "adriangschnitzer"]
[Black "Bagirova"]
[Result "0-1"]
[WhiteElo "2476"]
[BlackElo "2135"]
[TimeControl "180+2"]
[EndTime "15:06:50 PST"]
[Termination "Bagirova won on time"]

1. c4 {[%clk 0:02:56.8]} 1... Nf6 {[%clk 0:03:00.2]} 2. Nc3 {[%clk 0:02:57.7]}
2... g6 {[%clk 0:02:58.4]} 3. e4 {[%clk 0:02:58.3]} 3... d6 {[%clk 0:02:59.4]}
4. d4 {[%clk 0:02:59.8]} 4... Bg7 {[%clk 0:03:00.9]} 5. Be2 {[%clk 0:02:54.1]}
5... O-O {[%clk 0:02:57.1]} 6. Be3 {[%clk 0:02:55.1]} 6... c6 {[%clk 0:02:54.9]}
7. g4 {[%clk 0:02:53.4]} 7... Qc7 {[%clk 0:02:48]} 8. g5 {[%clk 0:02:50.7]} 8...
Nfd7 {[%clk 0:02:46.6]} 9. Qd2 {[%clk 0:02:49.7]} 9... e5 {[%clk 0:02:47.4]} 10.
O-O-O {[%clk 0:02:49.4]} 10... exd4 {[%clk 0:02:44.6]} 11. Bxd4 {[%clk
0:02:49.6]} 11... Ne5 {[%clk 0:02:45.9]} 12. f4 {[%clk 0:02:48.3]} 12... c5
{[%clk 0:02:38.5]} 13. Nd5 {[%clk 0:02:41]} 13... Qd8 {[%clk 0:02:36.5]} 14.
Bxe5 {[%clk 0:02:22.9]} 14... dxe5 {[%clk 0:02:33.6]} 15. Nf3 {[%clk 0:02:15.7]}
15... exf4 {[%clk 0:02:30.3]} 16. Qxf4 {[%clk 0:02:17.6]} 16... Nd7 {[%clk
0:02:29.2]} 17. Qd6 {[%clk 0:01:50.6]} 17... Qa5 {[%clk 0:02:24.1]} 18. Kb1
{[%clk 0:01:16.9]} 18... Qb4 {[%clk 0:02:17.1]} 19. Nf6+ {[%clk 0:00:55.1]}
19... Kh8 {[%clk 0:02:05.1]} 20. Ne5 {[%clk 0:00:44.7]} 20... Nxe5 {[%clk
0:01:55.3]} 21. Qxe5 {[%clk 0:00:46.6]} 21... Be6 {[%clk 0:01:51.7]} 22. b3
{[%clk 0:00:13.7]} 22... b5 {[%clk 0:01:45.1]} 23. Rd3 {[%clk 0:00:14.1]} 23...
bxc4 {[%clk 0:01:45.4]} 24. Rh3 {[%clk 0:00:14.9]} 24... Bxh3 {[%clk 0:01:40.2]}
25. Qg3 {[%clk 0:00:06.7]} 25... Be6 {[%clk 0:01:31.3]} 26. Qh4 {[%clk
0:00:06.1]} 26... Bxf6 {[%clk 0:01:32.1]} 27. gxf6 {[%clk 0:00:08]} 27... cxb3
{[%clk 0:01:30.4]} 28. Qh6 {[%clk 0:00:09]} 28... bxa2+ {[%clk 0:01:30.6]} 29.
Kc2 {[%clk 0:00:08.4]} 29... Qxe4+ {[%clk 0:01:26]} 30. Bd3 {[%clk 0:00:08.5]}
30... Qg2+ {[%clk 0:01:21.3]} 31. Kc3 {[%clk 0:00:09.3]} 31... Rg8 {[%clk
0:01:17.3]} 32. Re1 {[%clk 0:00:10.4]} 32... Qf2 {[%clk 0:01:08.8]} 33. Re4
{[%clk 0:00:10.7]} 33... Qxf6+ {[%clk 0:01:09.3]} 34. Kd2 {[%clk 0:00:10.8]}
34... a1=Q {[%clk 0:01:08.2]} 35. Rh4 {[%clk 0:00:11.5]} 35... Qac3+ {[%clk
0:01:07.6]} 0-1

[Event "*** Titled Tuesday Blitz"]
[Site "Chess.com"]
[Date "2020.01.07"]
[Round "9"]
[White "MathiasWomacka"]
[Black "Zavgorodniy_Serg"]
[Result "1-0"]
[WhiteElo "2398"]
[BlackElo "2598"]
[TimeControl "180+2"]
[EndTime "15:06:51 PST"]
[Termination "MathiasWomacka won by resignation"]

1. e4 {[%clk 0:02:40.8]} 1... e5 {[%clk 0:03:00.5]} 2. Nf3 {[%clk 0:02:41.3]}
2... d6 {[%clk 0:03:01.9]} 3. d4 {[%clk 0:02:41.1]} 3... exd4 {[%clk 0:03:03.8]}
4. Nxd4 {[%clk 0:02:42.5]} 4... Nf6 {[%clk 0:03:05.3]} 5. Nc3 {[%clk 0:02:43.9]}
5... Be7 {[%clk 0:03:06.8]} 6. Be2 {[%clk 0:02:45.5]} 6... O-O {[%clk
0:03:07.9]} 7. O-O {[%clk 0:02:46.9]} 7... c6 {[%clk 0:03:09.3]} 8. Re1 {[%clk
0:02:33.7]} 8... Re8 {[%clk 0:03:05.8]} 9. Bf4 {[%clk 0:02:33.3]} 9... b5 {[%clk
0:03:02.3]} 10. Bf1 {[%clk 0:02:31.3]} 10... Bf8 {[%clk 0:02:52.8]} 11. Qd3
{[%clk 0:02:18]} 11... Qc7 {[%clk 0:02:47.3]} 12. Rad1 {[%clk 0:02:14]} 12...
Nbd7 {[%clk 0:02:45.7]} 13. a3 {[%clk 0:01:48.1]} 13... a5 {[%clk 0:02:46]} 14.
f3 {[%clk 0:01:39.1]} 14... Ne5 {[%clk 0:02:32.7]} 15. Qd2 {[%clk 0:01:39.5]}
15... Nfd7 {[%clk 0:01:38.8]} 16. Nf5 {[%clk 0:01:33.5]} 16... b4 {[%clk
0:01:34.4]} 17. Nb1 {[%clk 0:01:32.1]} 17... d5 {[%clk 0:00:52.3]} 18. exd5
{[%clk 0:01:25]} 18... cxd5 {[%clk 0:00:53.5]} 19. Kh1 {[%clk 0:01:15.4]} 19...
Bb7 {[%clk 0:00:41.8]} 20. Bb5 {[%clk 0:01:05.3]} 20... f6 {[%clk 0:00:34.1]}
21. axb4 {[%clk 0:00:39.5]} 21... axb4 {[%clk 0:00:34.4]} 22. c3 {[%clk
0:00:40.7]} 22... Kh8 {[%clk 0:00:32.1]} 23. cxb4 {[%clk 0:00:40.6]} 23... Qb6
{[%clk 0:00:29.8]} 24. Nc3 {[%clk 0:00:34.3]} 24... Bxb4 {[%clk 0:00:19.2]} 25.
Bxe5 {[%clk 0:00:32.2]} 25... Bxc3 {[%clk 0:00:17]} 26. Bxc3 {[%clk 0:00:28.1]}
26... Qxb5 {[%clk 0:00:17.1]} 27. Rxe8+ {[%clk 0:00:29]} 27... Rxe8 {[%clk
0:00:17.6]} 28. Nd6 {[%clk 0:00:30.5]} 1-0

[Event "*** Titled Tuesday Blitz"]
[Site "Chess.com"]
[Date "2020.01.07"]
[Round "9"]
[White "JMatias"]
[Black "Majkelopulos"]
[Result "1-0"]
[WhiteElo "2450"]
[BlackElo "2523"]
[TimeControl "180+2"]
[EndTime "15:06:52 PST"]
[Termination "JMatias won by resignation"]

1. e4 {[%clk 0:03:01.9]} 1... e5 {[%clk 0:03:00.5]} 2. Nf3 {[%clk 0:03:00.3]}
2... Nc6 {[%clk 0:03:01.8]} 3. Bc4 {[%clk 0:03:00.5]} 3... g6 {[%clk 0:03:02.6]}
4. O-O {[%clk 0:02:58.9]} 4... Bg7 {[%clk 0:03:02.6]} 5. d3 {[%clk 0:03:00.2]}
5... d6 {[%clk 0:03:01.3]} 6. a4 {[%clk 0:03:01]} 6... h6 {[%clk 0:02:58.7]} 7.
c3 {[%clk 0:02:59.7]} 7... Nge7 {[%clk 0:02:56.2]} 8. Nbd2 {[%clk 0:02:54.1]}
8... O-O {[%clk 0:02:52.5]} 9. Re1 {[%clk 0:02:53.9]} 9... Kh7 {[%clk
0:02:53.4]} 10. b4 {[%clk 0:02:49.3]} 10... a6 {[%clk 0:02:52.7]} 11. Qb3 {[%clk
0:02:48.3]} 11... f5 {[%clk 0:02:51.5]} 12. Be6 {[%clk 0:02:46.5]} 12... f4
{[%clk 0:02:42.5]} 13. Bxc8 {[%clk 0:02:45.8]} 13... Qxc8 {[%clk 0:02:44.4]} 14.
h4 {[%clk 0:02:18.6]} 14... Qg4 {[%clk 0:02:34.6]} 15. Bb2 {[%clk 0:02:06.8]}
15... Bf6 {[%clk 0:02:33.1]} 16. b5 {[%clk 0:02:02.2]} 16... Na5 {[%clk
0:02:32.8]} 17. Qb4 {[%clk 0:01:58.8]} 17... b6 {[%clk 0:02:34.1]} 18. d4 {[%clk
0:01:52.6]} 18... Ng8 {[%clk 0:02:04.4]} 19. dxe5 {[%clk 0:01:49.8]} 19... dxe5
{[%clk 0:02:06.3]} 20. c4 {[%clk 0:01:47.9]} 20... Rfe8 {[%clk 0:02:06.5]} 21.
bxa6 {[%clk 0:01:38.8]} 21... Rxa6 {[%clk 0:02:06.7]} 22. c5 {[%clk 0:01:37.6]}
22... Qe6 {[%clk 0:01:47.1]} 23. cxb6 {[%clk 0:01:26.9]} 23... cxb6 {[%clk
0:01:49]} 24. Rac1 {[%clk 0:01:25.1]} 24... Ra7 {[%clk 0:01:41.5]} 25. Nc4
{[%clk 0:01:12.1]} 25... Nxc4 {[%clk 0:01:39]} 26. Rxc4 {[%clk 0:01:14]} 26...
Rea8 {[%clk 0:01:14.1]} 27. Rec1 {[%clk 0:00:42]} 27... Ne7 {[%clk 0:01:12.1]}
28. Rc7 {[%clk 0:00:18.8]} 28... Rxa4 {[%clk 0:01:09.7]} 29. Qc3 {[%clk
0:00:19.3]} 29... R4a5 {[%clk 0:01:07]} 30. Qd3 {[%clk 0:00:11.8]} 30... R8a7
{[%clk 0:00:59.8]} 31. Rxa7 {[%clk 0:00:08.4]} 31... Rxa7 {[%clk 0:01:01.7]} 32.
Qd8 {[%clk 0:00:08.5]} 32... Rd7 {[%clk 0:00:52.4]} 33. Qe8 {[%clk 0:00:07.3]}
33... Qg8 {[%clk 0:00:52.5]} 34. Qxd7 {[%clk 0:00:07.5]} 1-0

[Event "*** Titled Tuesday Blitz"]
[Site "Chess.com"]
[Date "2020.01.07"]
[Round "9"]
[White "aquaticpineapples"]
[Black "Ariadna_Atreides"]
[Result "1-0"]
[WhiteElo "2340"]
[BlackElo "2060"]
[TimeControl "180+2"]
[EndTime "15:07:17 PST"]
[Termination "aquaticpineapples won by checkmate"]

1. d4 {[%clk 0:03:01.9]} 1... e6 {[%clk 0:02:59.2]} 2. Nf3 {[%clk 0:03:02.5]}
2... c5 {[%clk 0:02:59.5]} 3. e3 {[%clk 0:03:03.3]} 3... Nf6 {[%clk 0:02:58.2]}
4. Bd3 {[%clk 0:03:04.2]} 4... Be7 {[%clk 0:02:58.4]} 5. b3 {[%clk 0:03:05.3]}
5... b6 {[%clk 0:02:58.2]} 6. Bb2 {[%clk 0:03:06.6]} 6... Bb7 {[%clk 0:02:59.4]}
7. Nbd2 {[%clk 0:03:07.9]} 7... O-O {[%clk 0:02:57.4]} 8. O-O {[%clk 0:03:08.9]}
8... Nc6 {[%clk 0:02:53]} 9. a3 {[%clk 0:03:09.6]} 9... d6 {[%clk 0:02:52]} 10.
Qe2 {[%clk 0:03:09.9]} 10... Rc8 {[%clk 0:02:48.1]} 11. Rfe1 {[%clk 0:03:09.5]}
11... h6 {[%clk 0:02:46.9]} 12. e4 {[%clk 0:03:05.9]} 12... cxd4 {[%clk
0:02:46.3]} 13. Nxd4 {[%clk 0:03:07]} 13... Nxd4 {[%clk 0:02:41.5]} 14. Bxd4
{[%clk 0:03:08.9]} 14... e5 {[%clk 0:02:42.4]} 15. Bb2 {[%clk 0:03:09.5]} 15...
Re8 {[%clk 0:02:32.6]} 16. Rac1 {[%clk 0:03:09.2]} 16... Bf8 {[%clk 0:02:31.9]}
17. Ba6 {[%clk 0:03:08]} 17... Bxa6 {[%clk 0:02:29.9]} 18. Qxa6 {[%clk
0:03:09.9]} 18... Qc7 {[%clk 0:02:17.7]} 19. Nc4 {[%clk 0:03:07.9]} 19... Nd7
{[%clk 0:02:02.2]} 20. a4 {[%clk 0:02:55.1]} 20... Nc5 {[%clk 0:01:58.7]} 21.
Qb5 {[%clk 0:02:56.1]} 21... Red8 {[%clk 0:01:47.6]} 22. Qb4 {[%clk 0:02:50.2]}
22... f6 {[%clk 0:01:31.5]} 23. Qd2 {[%clk 0:02:42.3]} 23... Qc6 {[%clk
0:01:24.3]} 24. Rcd1 {[%clk 0:02:30]} 24... Nxe4 {[%clk 0:01:21.4]} 25. Qd3
{[%clk 0:02:23.3]} 25... Nc5 {[%clk 0:01:04.6]} 26. Qg6 {[%clk 0:02:17.9]} 26...
d5 {[%clk 0:00:59.4]} 27. Ne3 {[%clk 0:02:18.6]} 27... d4 {[%clk 0:00:42.6]} 28.
Nf5 {[%clk 0:02:17.9]} 28... Kh8 {[%clk 0:00:39.6]} 29. Bc1 {[%clk 0:02:03.4]}
29... Qe8 {[%clk 0:00:39.5]} 30. Qg4 {[%clk 0:01:59]} 30... Ne6 {[%clk
0:00:35.4]} 31. Rd3 {[%clk 0:01:51.5]} 31... Rxc2 {[%clk 0:00:28]} 32. Rg3
{[%clk 0:01:09.2]} 32... h5 {[%clk 0:00:19.1]} 33. Qd1 {[%clk 0:01:00.7]} 33...
Rdc8 {[%clk 0:00:14.8]} 34. Bd2 {[%clk 0:00:58.2]} 34... Qc6 {[%clk 0:00:12.2]}
35. Qxh5+ {[%clk 0:00:58.2]} 35... Kg8 {[%clk 0:00:12.3]} 36. Nh6+ {[%clk
0:00:37.4]} 36... Kh8 {[%clk 0:00:06]} 37. Ng4+ {[%clk 0:00:38.4]} 37... Kg8
{[%clk 0:00:05]} 38. Nxf6# {[%clk 0:00:40.3]} 1-0

[Event "*** Titled Tuesday Blitz"]
[Site "Chess.com"]
[Date "2020.01.07"]
[Round "9"]
[White "Mr_Sinigami"]
[Black "Gordima"]
[Result "0-1"]
[WhiteElo "2593"]
[BlackElo "2815"]
[TimeControl "180+2"]
[EndTime "15:07:18 PST"]
[Termination "Gordima won by checkmate"]

1. d4 {[%clk 0:03:01.9]} 1... d5 {[%clk 0:03:00.9]} 2. Nf3 {[%clk 0:03:01.2]}
2... Nf6 {[%clk 0:03:01.8]} 3. Bf4 {[%clk 0:03:02.6]} 3... c5 {[%clk 0:03:02.4]}
4. e3 {[%clk 0:03:03.2]} 4... Nc6 {[%clk 0:03:03.7]} 5. c3 {[%clk 0:03:02.5]}
5... e6 {[%clk 0:03:04.9]} 6. Nbd2 {[%clk 0:03:03.2]} 6... cxd4 {[%clk
0:03:06.1]} 7. exd4 {[%clk 0:03:02.1]} 7... Nh5 {[%clk 0:03:07.3]} 8. Bg3 {[%clk
0:02:54.8]} 8... Be7 {[%clk 0:03:03.8]} 9. Bd3 {[%clk 0:02:54.3]} 9... g6 {[%clk
0:03:04.4]} 10. O-O {[%clk 0:02:49.3]} 10... Nxg3 {[%clk 0:03:02.1]} 11. hxg3
{[%clk 0:02:49.6]} 11... O-O {[%clk 0:03:03.7]} 12. Re1 {[%clk 0:02:49.7]} 12...
f6 {[%clk 0:02:55.9]} 13. Nf1 {[%clk 0:02:37.6]} 13... Kg7 {[%clk 0:02:52.7]}
14. Bc2 {[%clk 0:02:25.3]} 14... b5 {[%clk 0:02:45.6]} 15. a3 {[%clk 0:02:10.3]}
15... Qd6 {[%clk 0:02:42.3]} 16. Ne3 {[%clk 0:02:10.3]} 16... Bd7 {[%clk
0:02:36.9]} 17. Qd3 {[%clk 0:02:02.2]} 17... Be8 {[%clk 0:02:36.9]} 18. g4
{[%clk 0:02:00.4]} 18... Rb8 {[%clk 0:02:31.7]} 19. g3 {[%clk 0:02:00.8]} 19...
Bf7 {[%clk 0:02:30.9]} 20. Ng2 {[%clk 0:02:00.2]} 20... e5 {[%clk 0:02:27.7]}
21. dxe5 {[%clk 0:01:49.4]} 21... fxe5 {[%clk 0:02:29.6]} 22. Nfh4 {[%clk
0:01:45.4]} 22... e4 {[%clk 0:02:24.7]} 23. Qe2 {[%clk 0:01:41.1]} 23... Ne5
{[%clk 0:02:21.7]} 24. Rad1 {[%clk 0:01:41]} 24... Qf6 {[%clk 0:02:12.1]} 25.
Bb3 {[%clk 0:01:35.1]} 25... Bc5 {[%clk 0:02:04.2]} 26. Nf4 {[%clk 0:01:08.5]}
26... Rbe8 {[%clk 0:01:13.7]} 27. Bxd5 {[%clk 0:00:58.8]} 27... Nd3 {[%clk
0:01:13.4]} 28. Bxf7 {[%clk 0:00:39.5]} 28... Nxf4 {[%clk 0:01:14.3]} 29. gxf4
{[%clk 0:00:39.9]} 29... Qxh4 {[%clk 0:01:15.5]} 30. Bxe8 {[%clk 0:00:17.8]}
30... Qg3+ {[%clk 0:01:16.4]} 31. Kf1 {[%clk 0:00:17.3]} 31... Rxf4 {[%clk
0:01:11]} 32. Rd7+ {[%clk 0:00:15.3]} 32... Kh8 {[%clk 0:01:03]} 33. Rf7 {[%clk
0:00:16]} 33... Bxf2 {[%clk 0:00:35.1]} 34. Qxf2 {[%clk 0:00:15.1]} 34... Qxf2#
{[%clk 0:00:35.8]} 0-1